lending/lending_fUSD_20250917
["ID","MTS","AMOUNT","RATE_DAILY","PERIOD"]
[385923435,1758135058927,-407.59,0.00024447,2]
[385923436,1758135058936,-400.0,0.00024447,2]
[385923437,1758135058945,-400.0,0.00024447,2]
[385923438,1758135058954,-400.0,0.00024447,2]
[385923439,1758135058964,-400.0,0.00024447,2]
[385923440,1758135058973,-400.0,0.00024447,2]
[385923441,1758135058982,-404.87,0.00024447,2]
[385923442,1758135058991,-400.0,0.00024447,2]
[385923443,1758135059000,-443.24,0.00024447,2]
[385923444,1758135059010,-400.0,0.00024447,2]
[385923445,1758135059020,-400.0,0.00024447,2]
[385923446,1758135059029,-400.0,0.00024447,2]
[385923447,1758135059039,-400.0,0.00024447,2]
[385923448,1758135059049,-413.15831547,0.00024447,2]
[385923449,1758135059120,-168.90168453,0.00024447,2]
[385923450,1758135059130,-400.0,0.00024447,2]
[385923451,1758135059139,-99.8113594,0.00024447,2]
[385923452,1758135059302,-626.59526418,0.00024266,2]
[385923453,1758135059313,-798.40473582,0.00024266,2]
[385923454,1758135059323,-300.1886406,0.00024447,2]
[385923455,1758135059332,-50.40662358,0.00024447,2]
[385923456,1758135067659,215.28293191,0.000242,120]
[385923457,1758135368272,232.94,0.00011163,2]
[385923458,1758135368533,232.94,0.00011751,2]
[385923459,1758135368752,232.94,0.00012339,2]
[385923460,1758135369555,232.94,0.00012926,2]
[385923461,1758135369612,232.94,0.00013514,2]
[385923462,1758135369724,232.94,0.00014101,2]
[385923463,1758135369791,232.94,0.00014689,2]
[385923464,1758135369869,232.94,0.00015276,2]
[385923465,1758135370068,232.94,0.00015864,2]
[385923466,1758135370277,232.94,0.00016452,2]
[385923467,1758135370500,232.94,0.00017039,2]
[385923468,1758135370722,232.94,0.00017627,2]
[385923469,1758135370925,232.94,0.00018214,2]
[385923470,1758135371138,232.94,0.00018802,2]
[385923471,1758135371353,232.94,0.00019389,2]
[385923472,1758135371587,232.94,0.00019977,2]
[385923473,1758135385959,159.56,0.00017795,2]
[385923474,1758135487519,2000.0,0.00022621,120]
[385923475,1758135487618,2000.0,0.00020661,120]
[385923476,1758135487720,2000.0,0.00021014,120]
[385923477,1758135487829,2000.0,0.00021014,120]
[385923478,1758135487988,2000.0,0.00021014,120]
[385923479,1758135541852,2000.0,0.00022621,120]
[385923480,1758135542003,2000.0,0.00020613,120]
[385923481,1758135542115,2000.0,0.00020799,120]
[385923482,1758135542216,2000.0,0.00020799,120]
[385923483,1758135542342,2000.0,0.00020799,120]
[385923489,1758135651607,-232.94,0.00020564,2]
[385923490,1758135651642,-500.0,0.000206,2]
[385923525,1758136179498,428.0,0.000195,5]
[385923531,1758136231922,-187.16,0.00020335,2]
[385923532,1758136231933,-284.99243553,0.00020342,2]
[385923533,1758136231944,-150.0,0.00020389,7]
[385923534,1758136231954,-734.81,0.00020429,2]
[385923535,1758136231964,-250.0,0.00020435,2]
[385923536,1758136231974,-500.0,0.00020439,2]
[385923537,1758136231984,-247.0,0.00020439,2]
[385923538,1758136231993,-300.0,0.0002044,2]
[385923539,1758136232003,-1200.0,0.0002044,2]
[385923540,1758136232013,-300.0,0.0002044,2]
[385923541,1758136232022,-287.17072539,0.00020441,2]
[385923542,1758136232032,-500.0,0.00020441,2]
[385923543,1758136232041,-168.01197918,0.00020441,2]
[385923544,1758136232051,-500.0,0.00020441,2]
[385923545,1758136232060,-500.0,0.00020441,2]
[385923546,1758136232070,-357.38696358,0.00020441,2]
[385923547,1758136232080,-500.0,0.00020441,2]
[385923548,1758136232089,-500.0,0.00020441,2]
[385923549,1758136232098,-500.0,0.00020441,2]
[385923550,1758136232108,-500.0,0.00020441,2]
[385923551,1758136232122,-208.14617449,0.00020441,2]
[385923552,1758136232131,-500.0,0.00020441,2]
[385923553,1758136232141,-500.0,0.00020441,2]
[385923554,1758136232150,-500.0,0.00020441,2]
[385923555,1758136232160,-500.0,0.00020441,2]
[385923556,1758136232169,-500.0,0.00020441,2]
[385923557,1758136232178,-463.57517584,0.00020441,2]
[385923558,1758136232188,-500.0,0.00020441,2]
[385923559,1758136232197,-324.50262309,0.00020441,2]
[385923560,1758136232206,-500.0,0.00020441,2]
[385923561,1758136232216,-386.6527932,0.00020441,2]
[385923562,1758136232225,-64237.55896493,0.00020442,2]
[385923563,1758136232237,-592.36206145,0.00020442,2]
[385923564,1758136237248,-250.0,0.00020358,2]
[385923565,1758136237257,-638.66661145,0.00020442,2]
[385923566,1758136237268,-1020.58004511,0.00020442,2]
[385923567,1758136237301,-433.45178895,0.00020442,2]
[385923568,1758136237316,-600.0,0.00020442,2]
[385923569,1758136237358,-23595.41135397,0.00020442,2]
[385923570,1758136237369,-59289.22415508,0.00020442,2]
[385923571,1758136237411,-11356.18828231,0.00020442,2]
[385923572,1758136237422,-1065.45416575,0.00020442,2]
[385923573,1758136237465,-1385.7,0.00020442,2]
[385923574,1758136237480,-526.2,0.00020442,2]
[385923575,1758136237492,-358.194,0.00020442,2]
[385923576,1758136237504,-1056.09413,0.00020442,2]
[385923577,1758136237519,-5344.26128386,0.00020442,2]
[385923578,1758136237530,-298.86,0.00020442,2]
[385923579,1758136237541,-791.68998495,0.00020442,2]
[385923580,1758136237575,-1282.65375268,0.00020442,2]
[385923581,1758136237587,-1455.22816145,0.00020442,2]
[385923582,1758136237598,-4015.58164038,0.00020442,2]
[385923606,1758136237904,-458586.55327268,0.00020442,2]
[385923608,1758136237914,-500.0,0.00020473,2]
[385923610,1758136237924,-500.0,0.00020473,2]
[385923613,1758136237933,-500.0,0.00020473,2]
[385923616,1758136237943,-500.0,0.00020473,2]
[385923619,1758136237953,-283.1282433,0.000205,2]
[385923622,1758136237962,-2000.0,0.00020521,3]
[385923625,1758136237971,-6693.73,0.00020542,2]
[385923627,1758136237981,-1056.0,0.00020556,2]
[385923629,1758136237991,-2000.0,0.00020558,3]
[385923631,1758136238000,-2000.0,0.00020558,3]
[385923633,1758136238010,-1956.04685598,0.00020558,3]
[385923635,1758136238020,-871.82714161,0.000206,2]
[385923637,1758136238030,-151.0,0.000206,2]
[385923639,1758136238039,-666.0,0.00020612,3]
[385923641,1758136238049,-532.48,0.00020641,2]
[385923643,1758136238059,-412.58,0.00020811,2]
[385923645,1758136238069,-817.16,0.00020918,2]
[385923647,1758136238079,-500.0,0.00020967,2]
[385923649,1758136238089,-200.0,0.00020974,2]
[385923651,1758136238099,-500.0,0.00021021,2]
[385923653,1758136238108,-475.90433623,0.00021021,2]
[385923655,1758136238117,-1000.0,0.00021021,2]
[385923657,1758136238128,-1711.87,0.00021134,2]
[385923659,1758136238137,-156.587,0.00021148,2]
[385923661,1758136238147,-232.94,0.00021152,2]
[385923663,1758136238157,-5000.0,0.00021201,2]
[385923665,1758136238167,-6652.46,0.00021264,2]
[385923668,1758136238176,-169.4,0.00021332,2]
[385923670,1758136238186,-284.99243548,0.00021418,2]
[385923672,1758136238195,-285.18,0.00021582,2]
[385923674,1758136238205,-308.86333538,0.00021696,2]
[385923676,1758136238215,-232.94,0.0002174,2]
[385923678,1758136238224,-1500.0,0.00021759,2]
[385923680,1758136238234,-150.0,0.00021773,2]
[385923682,1758136238244,-150.0,0.00021773,2]
[385923684,1758136238254,-150.0,0.00021773,2]
[385923686,1758136238264,-150.0,0.00021773,2]
[385923688,1758136238273,-150.0,0.00021773,2]
[385923690,1758136238283,-150.0,0.00021773,2]
[385923692,1758136238293,-150.0,0.00021773,2]
[385923694,1758136238303,-150.0,0.00021773,2]
[385923696,1758136238313,-150.0,0.00021773,2]
[385923698,1758136238322,-150.0,0.00021773,2]
[385923700,1758136238332,-150.0,0.00021773,2]
[385923703,1758136238341,-500.0,0.000218,2]
[385923705,1758136238353,-1956.057,0.000218,2]
[385923707,1758136238363,-151.0,0.00021887,2]
[385923710,1758136238375,-151.0,0.00021887,2]
[385923712,1758136238386,-151.0,0.00021887,2]
[385923713,1758136238402,-151.0,0.00021887,2]
[385923715,1758136238413,-151.0,0.00021887,2]
[385923717,1758136238422,-151.0,0.00021887,2]
[385923719,1758136238431,-151.0,0.00021887,2]
[385923721,1758136238440,-151.0,0.00021887,2]
[385923723,1758136238450,-151.0,0.00021887,2]
[385923725,1758136238459,-151.0,0.00021887,2]
[385923727,1758136238468,-151.0,0.00021887,2]
[385923729,1758136238477,-500.0,0.00021887,2]
[385923731,1758136238487,-151.0,0.00021887,2]
[385923733,1758136238497,-151.0,0.00021887,2]
[385923735,1758136238506,-500.0,0.00021887,2]
[385923737,1758136238516,-151.0,0.00021887,2]
[385923739,1758136238526,-500.0,0.00021887,2]
[385923741,1758136238535,-151.0,0.00021887,2]
[385923743,1758136238545,-500.0,0.00021887,2]
[385923745,1758136238554,-151.0,0.00021887,2]
[385923747,1758136238564,-228.4708442,0.00021887,2]
[385923749,1758136238573,-500.0,0.00021887,2]
[385923751,1758136238583,-151.0,0.00021887,2]
[385923753,1758136238593,-500.0,0.00021887,2]
[385923755,1758136238603,-151.0,0.00021887,2]
[385923757,1758136238613,-500.0,0.00021887,2]
[385923759,1758136238624,-325.20690508,0.00021887,2]
[385923761,1758136238633,-151.0,0.00021887,2]
[385923763,1758136238643,-200.0,0.00021887,2]
[385923765,1758136238653,-151.0,0.00021887,2]
[385923767,1758136238662,-151.0,0.00021887,2]
[385923769,1758136238672,-151.0,0.00021887,2]
[385923771,1758136238682,-151.0,0.00021887,2]
[385923773,1758136238693,-151.0,0.00021887,2]
[385923775,1758136238711,-350.0,0.00021887,2]
[385923777,1758136238730,-859.52646081,0.00021899,2]
[385923779,1758136238748,-379.48272619,0.00021899,2]
[385923781,1758136238758,-218.27281934,0.000219,5]
[385923783,1758136238768,-400.0,0.00021917,2]
[385923785,1758136238777,-582.01,0.00021917,2]
[385923787,1758136238787,-745.68,0.00021917,2]
[385923789,1758136238796,-400.0,0.00021917,2]
[385923791,1758136238806,-400.0,0.00021917,2]
[385923793,1758136238815,-482.63,0.00021917,2]
[385923795,1758136238824,-400.0,0.00021917,2]
[385923797,1758136238833,-406.81782572,0.00021917,2]
[385923799,1758136238842,-400.0,0.00021917,2]
[385923801,1758136238852,-285.09782253,0.00021917,2]
[385923803,1758136238863,-494.82,0.00021917,2]
[385923805,1758136238874,-400.0,0.00021917,2]
[385923808,1758136238884,-400.0,0.00021917,2]
[385923810,1758136238894,-400.0,0.00021917,2]
[385923812,1758136238904,-400.0,0.00021917,2]
[385923814,1758136238914,-400.0,0.00021917,2]
[385923816,1758136238923,-400.0,0.00021917,2]
[385923818,1758136238931,-400.0,0.00021917,2]
[385923820,1758136238941,-400.0,0.00021917,2]
[385923822,1758136238951,-1751.24,0.00021917,2]
[385923824,1758136238961,-5000.0,0.00021918,2]
[385923826,1758136238971,-817.16,0.00021964,2]
[385923828,1758136238981,-500.81287603,0.00021973,2]
[385923830,1758136238992,-605.42614682,0.00021973,2]
[385923832,1758136239002,-500.0,0.00021973,2]
[385923834,1758136239012,-500.0,0.00021973,2]
[385923836,1758136239022,-500.0,0.00021973,2]
[385923838,1758136239031,-162.8785436,0.00021973,2]
[385923840,1758136239041,-500.0,0.00021973,2]
[385923842,1758136239050,-500.0,0.00021973,2]
[385923844,1758136239060,-500.0,0.00021973,2]
[385923846,1758136239069,-500.0,0.00021973,2]
[385923848,1758136239078,-500.0,0.00021973,2]
[385923850,1758136239087,-500.0,0.00021973,2]
[385923852,1758136239097,-500.0,0.00021973,2]
[385923854,1758136239106,-507.22231096,0.00021973,2]
[385923856,1758136239115,-504.28181794,0.00021973,2]
[385923858,1758136239125,-501.63854829,0.00021973,2]
[385923860,1758136239134,-492.36347577,0.00021973,2]
[385923862,1758136239144,-527.39840592,0.00021973,2]
[385923864,1758136239153,-500.0,0.00021973,2]
[385923866,1758136239163,-500.0,0.00021973,2]
[385923868,1758136239172,-254.78636331,0.00021973,2]
[385923870,1758136239182,-500.0,0.00021973,2]
[385923872,1758136239192,-500.0,0.00021973,2]
[385923874,1758136239201,-500.0,0.00021973,2]
[385923876,1758136239211,-500.0,0.00021973,2]
[385923878,1758136239220,-150.0,0.00021973,2]
[385923880,1758136239230,-150.0,0.00021973,2]
[385923882,1758136239239,-500.0,0.00021973,2]
[385923884,1758136239248,-500.0,0.00021973,2]
[385923886,1758136239258,-150.0,0.00021973,2]
[385923888,1758136239269,-150.0,0.00021973,2]
[385923890,1758136239278,-150.0,0.00021973,2]
[385923892,1758136239287,-500.0,0.00021973,2]
[385923895,1758136239296,-150.0,0.00021973,2]
[385923897,1758136239307,-500.0,0.00021973,2]
[385923899,1758136239316,-500.0,0.00021973,2]
[385923901,1758136239325,-150.0,0.00021973,2]
[385923903,1758136239334,-500.0,0.00021973,2]
[385923905,1758136239342,-605.0,0.00021973,2]
[385923907,1758136239352,-500.0,0.00021973,2]
[385923909,1758136239361,-2442.0,0.00021973,2]
[385923911,1758136239370,-178.25,0.00021986,2]
[385923913,1758136239381,-500.0,0.00021987,2]
[385923915,1758136239391,-595.0,0.00021987,2]
[385923917,1758136239402,-500.0,0.00021987,2]
[385923919,1758136239412,-500.0,0.00021987,2]
[385923921,1758136239420,-150.0,0.00021987,2]
[385923923,1758136239430,-150.0,0.00021987,2]
[385923925,1758136239442,-202.51365003,0.00021987,2]
[385923927,1758136239451,-810.45322833,0.00021988,2]
[385923929,1758136239460,-217.61931804,0.00021997,2]
[385923931,1758136239469,-1000.0,0.00021998,2]
[385923933,1758136239479,-1000.0,0.00021998,2]
[385923935,1758136239489,-2000.0,0.00021998,2]
[385923937,1758136239499,-2000.0,0.00021998,2]
[385923939,1758136239508,-2000.0,0.00021998,2]
[385923941,1758136239517,-2000.0,0.00021998,2]
[385923943,1758136239526,-2000.0,0.00021998,2]
[385923945,1758136239536,-2000.0,0.00021998,2]
[385923947,1758136239545,-2000.0,0.00021998,2]
[385923949,1758136239554,-2000.0,0.00021998,2]
[385923951,1758136239564,-432.582,0.00021998,2]
[385923953,1758136239573,-1000.0,0.00021998,2]
[385923955,1758136239582,-1000.0,0.00021998,2]
[385923957,1758136239592,-400.0,0.00021998,2]
[385923959,1758136239601,-415.4,0.00021998,2]
[385923961,1758136239610,-400.0,0.00021998,2]
[385923963,1758136239619,-400.0,0.00021998,2]
[385923965,1758136239630,-400.0,0.00021998,2]
[385923967,1758136239639,-401.69,0.00021998,2]
[385923969,1758136239649,-898.21,0.00021998,2]
[385923971,1758136239658,-553.35,0.00021998,2]
[385923973,1758136239667,-1177.51,0.00021998,2]
[385923975,1758136239676,-400.0,0.00021999,2]
[385923977,1758136239686,-400.0,0.00021999,2]
[385923979,1758136239695,-400.0,0.00021999,2]
[385923981,1758136239704,-400.0,0.00021999,2]
[385923983,1758136239713,-401.40192102,0.00021999,2]
[385923985,1758136239722,-400.0,0.00021999,2]
[385923987,1758136239731,-400.0,0.00021999,2]
[385923989,1758136239740,-400.0,0.00021999,2]
[385923992,1758136239749,-401.79914804,0.00021999,2]
[385923994,1758136239759,-402.65488014,0.00021999,2]
[385923996,1758136239768,-400.0,0.00021999,2]
[385924026,1758136240017,-402.60118937,0.00021999,2]
[385924027,1758136240027,-400.90605201,0.00021999,2]
[385924029,1758136240037,-400.0,0.00021999,2]
[385924031,1758136240047,-400.74223302,0.00021999,2]
[385924032,1758136240056,-405.07519516,0.00021999,2]
[385924034,1758136240065,-400.0,0.00021999,2]
[385924036,1758136240076,-400.0,0.00021999,2]
[385924039,1758136240086,-400.2282368,0.00021999,2]
[385924042,1758136240096,-405.38113074,0.00021999,2]
[385924043,1758136240105,-400.0,0.00021999,2]
[385924047,1758136240116,-400.0,0.00021999,2]
[385924049,1758136240129,-401.01573866,0.00021999,2]
[385924051,1758136240138,-400.0,0.00021999,2]
[385924055,1758136240148,-400.0,0.00021999,2]
[385924058,1758136240158,-401.81957012,0.00021999,2]
[385924060,1758136240167,-400.0,0.00021999,2]
[385924063,1758136240177,-400.0,0.00021999,2]
[385924066,1758136240186,-400.0,0.00021999,2]
[385924068,1758136240195,-400.0,0.00021999,2]
[385924071,1758136240205,-400.0,0.00021999,2]
[385924073,1758136240214,-400.0,0.00021999,2]
[385924076,1758136240223,-400.0,0.00021999,2]
[385924078,1758136240232,-400.0,0.00021999,2]
[385924081,1758136240242,-158.941075,0.00021999,2]
[385924084,1758136240251,-152.644779,0.00021999,2]
[385924086,1758136240260,-160.272593,0.00021999,2]
[385924089,1758136240270,-150.0,0.00021999,2]
[385924091,1758136240278,-150.0,0.00021999,2]
[385924094,1758136240287,-400.0,0.00021999,2]
[385924096,1758136240304,-500.0,0.00021999,2]
[385924099,1758136240315,-400.0,0.00021999,2]
[385924101,1758136240325,-150.0,0.00021999,2]
[385924103,1758136240334,-500.0,0.00021999,2]
[385924106,1758136240343,-420.21756556,0.00021999,2]
[385924109,1758136240352,-150.0,0.00021999,2]
[385924112,1758136240362,-500.0,0.00021999,2]
[385924115,1758136240372,-400.0,0.00021999,2]
[385924118,1758136240385,-400.0,0.00021999,2]
[385924121,1758136240398,-500.0,0.00021999,2]
[385924124,1758136240408,-400.0,0.00021999,2]
[385924127,1758136240418,-487.3,0.00021999,2]
[385924130,1758136240428,-400.0,0.00021999,2]
[385924135,1758136240438,-400.0,0.00021999,2]
[385924138,1758136240447,-400.0,0.00021999,2]
[385924141,1758136240457,-400.0,0.00021999,2]
[385924144,1758136240466,-400.0,0.00021999,2]
[385924147,1758136240476,-409.38124354,0.00021999,2]
[385924149,1758136240486,-400.0,0.00021999,2]
[385924152,1758136240495,-619.0,0.00021999,2]
[385924155,1758136240505,-400.0,0.00021999,2]
[385924159,1758136240514,-400.0,0.00021999,2]
[385924162,1758136240523,-400.0,0.00021999,2]
[385924165,1758136240533,-737.53,0.00021999,2]
[385924168,1758136240542,-400.0,0.00021999,2]
[385924170,1758136240551,-443.81,0.00021999,2]
[385924172,1758136240560,-400.0,0.00021999,2]
[385924174,1758136240569,-400.0,0.00021999,2]
[385924176,1758136240579,-400.0,0.00021999,2]
[385924178,1758136240589,-493.3,0.00021999,2]
[385924180,1758136240599,-400.0,0.00021999,2]
[385924182,1758136240608,-400.0,0.00021999,2]
[385924184,1758136240618,-400.0,0.00021999,2]
[385924187,1758136240629,-408.32880529,0.00021999,2]
[385924189,1758136240638,-620.66,0.00021999,2]
[385924191,1758136240647,-600.69,0.00021999,2]
[385924193,1758136240656,-400.0,0.00021999,2]
[385924195,1758136240666,-400.0,0.00021999,2]
[385924197,1758136240675,-522.27,0.00021999,2]
[385924199,1758136240684,-400.0,0.00021999,2]
[385924201,1758136240693,-400.0,0.00021999,2]
[385924203,1758136240707,-400.0,0.00021999,2]
[385924205,1758136240717,-409.05,0.00021999,2]
[385924207,1758136240727,-483.56678994,0.00021999,2]
[385924210,1758136240736,-431.09,0.00021999,2]
[385924212,1758136240746,-400.0,0.00021999,2]
[385924214,1758136240755,-400.0,0.00021999,2]
[385924216,1758136240765,-483.5714672,0.00021999,2]
[385924218,1758136240774,-400.0,0.00021999,2]
[385924220,1758136240784,-400.0,0.00021999,2]
[385924222,1758136240794,-400.0,0.00021999,2]
[385924224,1758136240802,-275.68637859,0.00021999,2]
[385924226,1758136240811,-508.41,0.00021999,2]
[385924228,1758136240821,-400.0,0.00021999,2]
[385924230,1758136240830,-411.68596561,0.00021999,2]
[385924232,1758136240840,-400.0,0.00021999,2]
[385924234,1758136240850,-400.0,0.00021999,2]
[385924236,1758136240861,-458.23,0.00021999,2]
[385924238,1758136240871,-400.0,0.00021999,2]
[385924240,1758136240883,-1664.17,0.00021999,2]
[385924242,1758136240893,-400.0,0.00021999,2]
[385924244,1758136240903,-413.13,0.00021999,2]
[385924246,1758136240913,-400.0,0.00021999,2]
[385924248,1758136240922,-400.0,0.00021999,2]
[385924251,1758136240932,-400.0,0.00021999,2]
[385924253,1758136240941,-400.0,0.00021999,2]
[385924255,1758136240951,-414.22402485,0.00021999,2]
[385924257,1758136240960,-400.0,0.00021999,2]
[385924259,1758136240970,-400.0,0.00021999,2]
[385924261,1758136240979,-400.0,0.00021999,2]
[385924263,1758136240989,-530.6,0.00021999,2]
[385924265,1758136240999,-400.0,0.00021999,2]
[385924267,1758136241009,-400.0,0.00021999,2]
[385924269,1758136241019,-400.0,0.00021999,2]
[385924271,1758136241029,-500.0,0.00021999,2]
[385924273,1758136241039,-400.0,0.00021999,2]
[385924275,1758136241049,-400.0,0.00021999,2]
[385924278,1758136241059,-400.0,0.00021999,2]
[385924280,1758136241069,-400.0,0.00021999,2]
[385924282,1758136241079,-400.0,0.00021999,2]
[385924284,1758136241088,-400.0,0.00021999,2]
[385924286,1758136241099,-400.0,0.00021999,2]
[385924288,1758136241113,-400.0,0.00021999,2]
[385924290,1758136241126,-400.0,0.00021999,2]
[385924292,1758136241136,-582.21,0.00021999,2]
[385924294,1758136241146,-400.0,0.00021999,2]
[385924297,1758136241156,-400.0,0.00021999,2]
[385924299,1758136241167,-400.0,0.00021999,2]
[385924301,1758136241176,-412.53755472,0.00021999,2]
[385924303,1758136241186,-400.0,0.00021999,2]
[385924305,1758136241196,-400.0,0.00021999,2]
[385924307,1758136241206,-400.0,0.00021999,2]
[385924309,1758136241216,-400.0,0.00021999,2]
[385924311,1758136241225,-415.53396585,0.00021999,2]
[385924313,1758136241235,-400.0,0.00021999,2]
[385924315,1758136241244,-400.0,0.00021999,2]
[385924317,1758136241254,-400.0,0.00021999,2]
[385924319,1758136241263,-400.0,0.00021999,2]
[385924321,1758136241273,-400.0,0.00021999,2]
[385924324,1758136241283,-490.63,0.00021999,2]
[385924326,1758136241293,-400.0,0.00021999,2]
[385924328,1758136241303,-530.93,0.00021999,2]
[385924330,1758136241312,-399.77828291,0.00021999,2]
[385924332,1758136241322,-427.05960094,0.00021999,2]
[385924334,1758136241335,-400.0,0.00021999,2]
[385924336,1758136241344,-400.0,0.00021999,2]
[385924338,1758136241355,-400.0,0.00021999,2]
[385924341,1758136241366,-400.0,0.00021999,2]
[385924343,1758136241379,-400.0,0.00021999,2]
[385924345,1758136241393,-400.0,0.00021999,2]
[385924347,1758136241408,-401.46426989,0.00021999,2]
[385924349,1758136241418,-400.0,0.00021999,2]
[385924351,1758136241429,-506.24941595,0.00021999,2]
[385924353,1758136241440,-400.0,0.00021999,2]
[385924355,1758136241451,-400.0,0.00021999,2]
[385924357,1758136241462,-436.11,0.00021999,2]
[385924360,1758136241478,-400.0,0.00021999,2]
[385924362,1758136241488,-400.0,0.00021999,2]
[385924364,1758136241498,-417.87124767,0.00021999,2]
[385924366,1758136241508,-400.0,0.00021999,2]
[385924368,1758136241518,-400.0,0.00021999,2]
[385924370,1758136241528,-400.0,0.00021999,2]
[385924372,1758136241537,-400.0,0.00021999,2]
[385924374,1758136241548,-400.0,0.00021999,2]
[385924376,1758136241557,-400.0,0.00021999,2]
[385924378,1758136241569,-465.08,0.00021999,2]
[385924380,1758136241579,-400.0,0.00021999,2]
[385924383,1758136241593,-400.0,0.00021999,2]
[385924385,1758136241602,-400.0,0.00021999,2]
[385924387,1758136241612,-400.0,0.00021999,2]
[385924389,1758136241622,-400.0,0.00021999,2]
[385924391,1758136241637,-400.0,0.00021999,2]
[385924393,1758136241647,-400.0,0.00021999,2]
[385924396,1758136241658,-416.56,0.00021999,2]
[385924398,1758136241668,-400.0,0.00021999,2]
[385924400,1758136241678,-400.0,0.00021999,2]
[385924402,1758136241688,-400.0,0.00021999,2]
[385924404,1758136241698,-402.03752447,0.00021999,2]
[385924406,1758136241708,-410.6179619,0.00021999,2]
[385924408,1758136241719,-400.0,0.00021999,2]
[385924410,1758136241730,-500.0,0.00021999,2]
[385924412,1758136241740,-400.0,0.00021999,2]
[385924414,1758136241751,-500.0,0.00021999,2]
[385924416,1758136241761,-400.0,0.00021999,2]
[385924418,1758136241771,-401.23691103,0.00021999,2]
[385924421,1758136241781,-400.0,0.00021999,2]
[385924423,1758136241791,-393.19155457,0.00021999,2]
[385924425,1758136241801,-400.0,0.00021999,2]
[385924427,1758136241812,-400.0,0.00021999,2]
[385924429,1758136241825,-401.97367601,0.00021999,2]
[385924431,1758136241836,-400.0,0.00021999,2]
[385924433,1758136241847,-400.0,0.00021999,2]
[385924436,1758136241858,-484.95004658,0.00021999,2]
[385924438,1758136241869,-400.0,0.00021999,2]
[385924440,1758136241881,-402.06255331,0.00021999,2]
[385924442,1758136241891,-400.0,0.00021999,2]
[385924444,1758136241902,-547.43,0.00021999,2]
[385924446,1758136241912,-400.0,0.00021999,2]
[385924448,1758136241921,-400.0,0.00021999,2]
[385924450,1758136241930,-400.0,0.00021999,2]
[385924452,1758136241941,-410.02916929,0.00021999,2]
[385924455,1758136241951,-400.0,0.00021999,2]
[385924457,1758136241961,-400.0,0.00021999,2]
[385924459,1758136241970,-400.0,0.00021999,2]
[385924461,1758136241980,-400.0,0.00021999,2]
[385924463,1758136241990,-400.0,0.00021999,2]
[385924465,1758136241999,-400.0,0.00021999,2]
[385924467,1758136242008,-400.0,0.00021999,2]
[385924469,1758136242017,-403.21013407,0.00021999,2]
[385924471,1758136242027,-400.0,0.00021999,2]
[385924473,1758136242036,-400.0,0.00021999,2]
[385924475,1758136242046,-588.4,0.00021999,2]
[385924477,1758136242055,-400.0,0.00021999,2]
[385924479,1758136242066,-400.0,0.00021999,2]
[385924481,1758136242076,-400.0,0.00021999,2]
[385924482,1758136242086,-400.0,0.00021999,2]